[Event "Hungarian Youth-ch II 2024"]
[Site "Szolnok"]
[Date "2024.04.02"]
[Round "2.5"]
[White "Horvath, Adel"]
[Black "Illes-Nagy, Nora"]
[Result "0-1"]
[ECO "D30"]
[WhiteElo "1681"]
[BlackElo "1757"]
[Annotator "NA RC"]
[PlyCount "116"]
[EventDate "2024.03.31"]
[EventType "swiss"]
[EventCountry "HUN"]
[SourceTitle "playchess.com"]
[Source "ChessBase"]
[SourceQuality "1"]
[TimeControl "5400+30"]

1. d4 {[%emt 0:00:02]} d5 {[%emt 0:00:07]} 2. c4 {[%emt 0:00:05]} c6 {[%emt 0:00:06]} 3. Nf3 {[%emt 0:00:08]} Nf6 {[%emt 0:00:15]} 4. Nbd2 {[%emt 0:00:13]} e6 {[%emt 0:00:52]} 5. e3 {[%emt 0:00:15]} Bd6 {[%emt 0:00:29]} 6. Bd3 {[%emt 0:00:23]} Nbd7 {[%emt 0:00:45]} 7. O-O {[%emt 0:00:37]} O-O {[%emt 0:00:13]} 8. e4 {[%emt 0:00:35]} dxe4 {[%emt 0:00:31]} 9. Nxe4 {[%emt 0:00:10]} Nxe4 {[%emt 0:01:07]} 10. Bxe4 {[%emt 0:00:07]} Nf6 {[%emt 0:00:27]} 11. Bc2 {[%emt 0:00:21]} c5 {[%emt 0:07:20]} 12. Bg5 {[%emt 0:02:36]} b6 {[%emt 0:04:00]} 13. Qd3 {[%emt 0:12:03]} g6 {[%emt 0:03:46]} 14. dxc5 {[%emt 0:03:09]} Be7 {[%emt 0:01:32]} 15. Qxd8 {[%emt 0:03:25]} Bxd8 {[%emt 0:01:14]} 16. cxb6 {[%emt 0:00:21]} axb6 {[%emt 0:00:09]} 17. Rfd1 {[%emt 0:00:37]} Be7 {[%emt 0:01:44]} 18. Ne5 {[%emt 0:01:43]} Ra5 {[%emt 0:10:39]} 19. Nc6 {[%emt 0:01:50]} Rxg5 {[%emt 0:00:40]} 20. Nxe7+ {[%emt 0:00:08]} Kg7 {[%emt 0:00:21]} 21. Nxc8 {[%emt 0:00:19]} Rxc8 {[%emt 0:00:08]} 22. b3 {[%emt 0:00:21]} Re5 {[%emt 0:05:20]} 23. Re1 {[%emt 0:02:28]} Ra5 {[%emt 0:02:30]} 24. b4 {[%emt 0:01:29]} Ra3 {[%emt 0:01:25]} 25. Bb3 {[%emt 0:00:22]} Nd7 {[%emt 0:03:01]} 26. Rad1 {[%emt 0:01:48]} Nb8 {[%emt 0:02:40]} 27. Rd6 {[%emt 0:03:26]} Nc6 {[%emt 0:00:29]} 28. Re2 {[%emt 0:21:27]} Nxb4 {[%emt 0:01:13]} 29. Rxb6 {[%emt 0:00:40]} Nc6 {[%emt 0:01:50]} 30. f3 {[%emt 0:02:07]} Kf6 {[%emt 0:02:15]} 31. f4 {[%emt 0:04:24]} Rc7 {[%emt 0:01:05]} 32. Kf2 {[%emt 0:05:03]} Ke7 {[%emt 0:04:24]} 33. Rd2 {[%emt 0:03:13]} Na5 {[%emt 0:03:47]} 34. Rd4 {[%emt 0:01:32]} Nb7 {[%emt 0:01:49]} 35. g4 {[%emt 0:03:23]} Na5 {[%emt 0:02:19]} 36. Rb5 {[%emt 0:01:38]} Nb7 {[%emt 0:02:29]} 37. Rb6 {[%emt 0:00:26]} Nc5 {[%emt 0:01:56]} 38. Rb5 {[%emt 0:02:04]} h6 {[%emt 0:01:34]} 39. Kg2 {[%emt 0:04:37]} Raa7 {[%emt 0:04:15]} 40. Rd2 {[%emt 0:03:30]} Rab7 {[%emt 0:01:04]} 41. Bd1 {[%emt 0:01:56]} Ra7 {[%emt 0:01:33]} 42. Be2 {[%emt 0:02:16]} Ne4 {[%emt 0:01:09]} 43. Rc2 {[%emt 0:00:34]} Nc5 {[%emt 0:01:01]} 44. Rb8 {[%emt 0:01:10]} Kf6 {[%emt 0:01:27]} 45. Rb5 {[%emt 0:01:42]} Ra6 {[%emt 0:03:22]} 46. h4 {[%emt 0:01:47]} Ra3 {[%emt 0:00:54]} 47. Bf1 {[%emt 0:01:47]} Ne4 {[%emt 0:02:44]} 48. Rb3 {[%emt 0:00:19]} Ra5 {[%emt 0:01:08]} 49. Bd3 {[%emt 0:01:04]} Nc5 {[%emt 0:00:39]} 50. Rb5 {[%emt 0:00:11]} Nxd3 {[%emt 0:00:24]} 51. Rd2 {[%emt 0:01:00]} Rxb5 {[%emt 0:00:14]} 52. cxb5 {[%emt 0:00:05]} Nxf4+ {[%emt 0:00:11]} 53. Kg3 {[%emt 0:00:09]} Nd5 {[%emt 0:00:11]} 54. a4 {[%emt 0:00:21]} Ra7 {[%emt 0:00:22]} 55. Ra2 {[%emt 0:00:50]} Ke7 {[%emt 0:00:43]} 56. a5 {[%emt 0:01:25]} Kd6 {[%emt 0:00:13]} 57. a6 {[%emt 0:00:29]} Kc5 {[%emt 0:00:26]} 58. Rb2 {[%emt 0:00:17]} Kb6 {[%emt 0:00:11]} 0-1

[Event "Hungarian Youth-ch II 2024"]
[Site "Szolnok"]
[Date "2024.04.02"]
[Round "2.6"]
[White "Hangyal, Anna"]
[Black "Biro, Csilla"]
[Result "1-0"]
[ECO "C02"]
[WhiteElo "1719"]
[BlackElo "1626"]
[Annotator "NA RC"]
[PlyCount "51"]
[EventDate "2024.03.31"]
[EventType "swiss"]
[EventCountry "HUN"]
[SourceTitle "playchess.com"]
[Source "ChessBase"]
[SourceQuality "1"]
[TimeControl "5400+30"]

1. e4 {[%emt 0:00:03]} e6 {[%emt 0:00:08]} 2. d4 {[%emt 0:00:06]} d5 {[%emt 0:00:32]} 3. e5 {[%emt 0:00:06]} c5 {[%emt 0:00:46]} 4. c3 {[%emt 0:00:09]} Nc6 {[%emt 0:01:26]} 5. Nf3 {[%emt 0:00:08]} Nge7 {[%emt 0:05:14]} 6. Na3 {[%emt 0:00:16]} a6 {[%emt 0:04:27]} 7. Bd3 {[%emt 0:04:10]} cxd4 {[%emt 0:08:22]} 8. cxd4 {[%emt 0:00:14]} Nf5 {[%emt 0:09:16]} 9. Nc2 {[%emt 0:00:11]} Be7 {[%emt 0:05:45]} 10. O-O {[%emt 0:02:09]} O-O {[%emt 0:02:01]} 11. Bd2 {[%emt 0:05:40]} Qb6 {[%emt 0:08:17]} 12. Rb1 {[%emt 0:01:03]} Kh8 {[%emt 0:11:20]} 13. Kh1 {[%emt 0:00:34]} a5 {[%emt 0:07:20]} 14. g4 {[%emt 0:04:05]} Nfxd4 {[%emt 0:06:31]} 15. Nfxd4 {[%emt 0:00:58]} Nxd4 {[%emt 0:00:24]} 16. Be3 {[%emt 0:00:06]} Bc5 {[%emt 0:00:29]} 17. b4 {[%emt 0:00:13]} axb4 {[%emt 0:01:06]} 18. Bxd4 {[%emt 0:00:10]} Bxd4 {[%emt 0:03:54]} 19. Rxb4 {[%emt 0:00:09]} Qc7 {[%emt 0:00:28]} 20. Nxd4 {[%emt 0:01:06]} Qxe5 {[%emt 0:00:47]} 21. f4 {[%emt 0:00:49]} Qd6 {[%emt 0:02:17]} 22. Rb2 {[%emt 0:01:38]} Qc7 {[%emt 0:02:45]} 23. g5 {[%emt 0:02:39]} Qc3 {[%emt 0:04:41]} 24. Rd2 {[%emt 0:00:17]} Qxd4 {[%emt 0:07:30]} 25. Bxh7 {[%emt 0:00:10]} Qc4 {[%emt 0:00:29]} 26. Bd3 {[%emt 0:00:12]} 1-0

[Event "Hungarian Youth-ch II 2024"]
[Site "Szolnok"]
[Date "2024.04.02"]
[Round "2.7"]
[White "Farkas, Roza"]
[Black "Janosi, Boglarka"]
[Result "0-1"]
[ECO "D45"]
[WhiteElo "1476"]
[BlackElo "1466"]
[Annotator "NA RC"]
[PlyCount "78"]
[EventDate "2024.03.31"]
[EventType "swiss"]
[EventCountry "HUN"]
[SourceTitle "playchess.com"]
[Source "ChessBase"]
[SourceQuality "1"]
[TimeControl "5400+30"]

1. d4 {[%emt 0:00:04]} d5 {[%emt 0:00:07]} 2. c4 {[%emt 0:00:10]} c6 {[%emt 0:00:05]} 3. Nf3 {[%emt 0:00:25]} Nf6 {[%emt 0:00:17]} 4. e3 {[%emt 0:01:33]} e6 {[%emt 0:00:30]} 5. Nc3 {[%emt 0:01:13]} Bd6 {[%emt 0:00:33]} 6. cxd5 {[%emt 0:03:11]} exd5 {[%emt 0:00:19]} 7. Bd3 {[%emt 0:02:53]} O-O {[%emt 0:01:18]} 8. O-O {[%emt 0:01:47]} Qc7 {[%emt 0:01:46]} 9. Re1 {[%emt 0:02:41]} Re8 {[%emt 0:01:13]} 10. Qc2 {[%emt 0:01:56]} Bg4 {[%emt 0:01:47]} 11. Qd1 {[%emt 0:03:12]} Bxh2+ {[%emt 0:01:01]} 12. Kf1 {[%emt 0:07:22]} Bd6 {[%emt 0:01:53]} 13. e4 {[%emt 0:04:47]} dxe4 {[%emt 0:05:15]} 14. Nxe4 {[%emt 0:03:36]} Nxe4 {[%emt 0:00:55]} 15. Bxe4 Nd7 {[%emt 0:00:55]} 16. Bd2 {[%emt 0:08:36]} Nf6 {[%emt 0:00:51]} 17. Bd3 {[%emt 0:03:43]} Rxe1+ {[%emt 0:00:28]} 18. Bxe1 {[%emt 0:01:19]} Re8 {[%emt 0:00:27]} 19. Rc1 {[%emt 0:01:19]} Qd7 {[%emt 0:02:35]} 20. Bc3 {[%emt 0:01:24]} Qe6 {[%emt 0:01:43]} 21. a3 {[%emt 0:01:48]} Bxf3 {[%emt 0:01:13]} 22. Qxf3 {[%emt 0:00:45]} Qg4 {[%emt 0:00:26]} 23. Qxg4 {[%emt 0:02:07]} Nxg4 {[%emt 0:00:14]} 24. f3 {[%emt 0:01:25]} Ne3+ {[%emt 0:00:29]} 25. Kf2 {[%emt 0:01:21]} Nd5 {[%emt 0:00:16]} 26. Bc4 {[%emt 0:02:45]} b5 {[%emt 0:00:58]} 27. Bxd5 {[%emt 0:00:53]} cxd5 {[%emt 0:00:22]} 28. b4 {[%emt 0:04:35]} Rc8 {[%emt 0:01:10]} 29. Bd2 {[%emt 0:01:45]} Rxc1 {[%emt 0:01:02]} 30. Bxc1 {[%emt 0:00:10]} f6 {[%emt 0:00:36]} 31. Be3 {[%emt 0:01:10]} g5 {[%emt 0:01:22]} 32. Kf1 {[%emt 0:01:10]} Bf4 {[%emt 0:00:36]} 33. Bxf4 {[%emt 0:00:31]} gxf4 {[%emt 0:00:22]} 34. Ke2 {[%emt 0:01:36]} Kg7 {[%emt 0:00:34]} 35. Kf2 {[%emt 0:00:46]} Kg6 {[%emt 0:00:11]} 36. g3 {[%emt 0:00:41]} fxg3+ {[%emt 0:00:16]} 37. Kxg3 {[%emt 0:00:11]} Kg5 {[%emt 0:00:09]} 38. f4+ {[%emt 0:01:06]} Kf5 {[%emt 0:00:10]} 39. Kf3 {[%emt 0:00:24]} h5 {[%emt 0:00:07]} 0-1

[Event "Hungarian Youth-ch II 2024"]
[Site "Szolnok"]
[Date "2024.04.02"]
[Round "3.4"]
[White "Illes-Nagy, Nora"]
[Black "Wang, Luomeng"]
[Result "1-0"]
[ECO "A65"]
[WhiteElo "1757"]
[BlackElo "1797"]
[Annotator "NA RC"]
[PlyCount "101"]
[EventDate "2024.03.31"]
[EventType "swiss"]
[EventCountry "HUN"]
[SourceTitle "playchess.com"]
[Source "ChessBase"]
[SourceQuality "1"]
[TimeControl "5400+30"]

1. d4 {[%emt 0:00:03]} Nf6 {[%emt 0:00:08]} 2. c4 {[%emt 0:00:24]} c5 {[%emt 0:00:16]} 3. d5 {[%emt 0:00:41]} e6 {[%emt 0:00:10]} 4. Nc3 {[%emt 0:00:27]} exd5 {[%emt 0:00:17]} 5. cxd5 {[%emt 0:00:36]} d6 {[%emt 0:00:09]} 6. e4 {[%emt 0:00:49]} g6 {[%emt 0:00:16]} 7. Be2 {[%emt 0:03:07]} Bg7 {[%emt 0:01:04]} 8. Bf4 {[%emt 0:03:31]} O-O {[%emt 0:02:00]} 9. Nf3 {[%emt 0:01:39]} Bg4 {[%emt 0:05:37]} 10. Nd2 {[%emt 0:02:26]} Bxe2 {[%emt 0:00:46]} 11. Qxe2 {[%emt 0:00:37]} Nh5 {[%emt 0:07:21]} 12. Be3 {[%emt 0:01:46]} Nd7 {[%emt 0:02:23]} 13. Nc4 {[%emt 0:11:21]} Ne5 {[%emt 0:03:34]} 14. Nxe5 {[%emt 0:03:16]} Bxe5 {[%emt 0:00:27]} 15. Qd2 {[%emt 0:01:24]} Re8 {[%emt 0:05:36]} 16. O-O {[%emt 0:04:54]} Qd7 {[%emt 0:05:07]} 17. f3 {[%emt 0:01:46]} Ng7 {[%emt 0:04:10]} 18. Bf4 {[%emt 0:02:06]} Bd4+ {[%emt 0:04:06]} 19. Be3 {[%emt 0:02:11]} Nf5 {[%emt 0:02:33]} 20. Bxd4 {[%emt 0:00:33]} Nxd4 {[%emt 0:00:15]} 21. Qg5 {[%emt 0:03:25]} Qe7 {[%emt 0:05:19]} 22. Qd2 {[%emt 0:05:01]} b5 {[%emt 0:04:03]} 23. Rae1 {[%emt 0:06:11]} b4 {[%emt 0:05:09]} 24. Nd1 {[%emt 0:02:06]} Qd7 {[%emt 0:01:19]} 25. Qg5 {[%emt 0:02:31]} Re5 {[%emt 0:05:32]} 26. Qh4 {[%emt 0:03:12]} Qe7 {[%emt 0:05:51]} 27. Qxe7 {[%emt 0:03:53]} Rxe7 {[%emt 0:00:05]} 28. Ne3 {[%emt 0:01:37]} a5 {[%emt 0:06:16]} 29. Nc4 {[%emt 0:00:49]} Ra6 {[%emt 0:01:30]} 30. f4 {[%emt 0:06:54]} f6 {[%emt 0:02:06]} 31. g4 {[%emt 0:04:27]} h6 {[%emt 0:04:28]} 32. h4 {[%emt 0:00:47]} f5 {[%emt 0:04:37]} 33. gxf5 {[%emt 0:00:27]} gxf5 {[%emt 0:00:08]} 34. e5 {[%emt 0:00:16]} Kf7 {[%emt 0:02:18]} 35. Kh1 {[%emt 0:01:08]} Nb5 {[%emt 0:02:29]} 36. h5 {[%emt 0:03:24]} Kf8 {[%emt 0:01:18]} 37. Rg1 {[%emt 0:02:14]} dxe5 {[%emt 0:02:24]} 38. fxe5 {[%emt 0:00:13]} f4 {[%emt 0:01:04]} 39. Rgf1 {[%emt 0:01:09]} Rf7 {[%emt 0:00:41]} 40. d6 {[%emt 0:05:08]} Rf5 {[%emt 0:00:57]} 41. Kg2 {[%emt 0:00:53]} Ra7 {[%emt 0:01:28]} 42. Re4 {[%emt 0:01:00]} Rg7+ {[%emt 0:00:45]} 43. Kf2 {[%emt 0:00:33]} f3 {[%emt 0:01:46]} 44. Rg1 {[%emt 0:01:00]} Rxg1 {[%emt 0:01:36]} 45. Kxg1 {[%emt 0:00:10]} f2+ {[%emt 0:01:38]} 46. Kf1 {[%emt 0:00:05]} Nd4 {[%emt 0:00:16]} 47. e6 {[%emt 0:00:40]} Nf3 {[%emt 0:00:50]} 48. e7+ {[%emt 0:01:39]} Kg7 {[%emt 0:00:40]} 49. Kxf2 {[%emt 0:02:02]} Ng5+ {[%emt 0:01:33]} 50. Ke3 {[%emt 0:00:32]} Rf3+ {[%emt 0:00:08]} 51. Ke2 {[%emt 0:00:20]} 1-0

[Event "Hungarian Youth-ch II 2024"]
[Site "Szolnok"]
[Date "2024.04.02"]
[Round "3.5"]
[White "Ferenczy, Nora"]
[Black "Hangyal, Anna"]
[Result "0-1"]
[ECO "D20"]
[WhiteElo "1699"]
[BlackElo "1719"]
[Annotator "NA RC"]
[PlyCount "124"]
[EventDate "2024.03.31"]
[EventType "swiss"]
[EventCountry "HUN"]
[SourceTitle "playchess.com"]
[Source "ChessBase"]
[SourceQuality "1"]
[TimeControl "5400+30"]

1. d4 {[%emt 0:00:01]} d5 {[%emt 0:00:04]} 2. c4 {[%emt 0:00:02]} dxc4 {[%emt 0:00:06]} 3. e4 {[%emt 0:00:06]} e5 {[%emt 0:00:04]} 4. Nf3 {[%emt 0:02:27]} Bg4 {[%emt 0:05:00]} 5. Qa4+ {[%emt 0:12:47]} Qd7 {[%emt 0:01:45]} 6. Qxd7+ {[%emt 0:00:43]} Nxd7 {[%emt 0:00:18]} 7. Nxe5 {[%emt 0:01:46]} Nxe5 {[%emt 0:00:43]} 8. dxe5 {[%emt 0:00:20]} O-O-O {[%emt 0:01:07]} 9. f3 {[%emt 0:02:01]} Be6 {[%emt 0:00:36]} 10. Be3 {[%emt 0:01:33]} Ne7 {[%emt 0:05:01]} 11. Nd2 {[%emt 0:05:26]} Nc6 {[%emt 0:05:22]} 12. Nxc4 {[%emt 0:02:47]} Bxc4 {[%emt 0:00:11]} 13. Bxc4 {[%emt 0:00:11]} Nxe5 {[%emt 0:00:05]} 14. Rc1 {[%emt 0:02:22]} Bb4+ {[%emt 0:02:06]} 15. Ke2 {[%emt 0:01:37]} Nxc4 {[%emt 0:01:02]} 16. Rxc4 {[%emt 0:00:20]} Ba5 {[%emt 0:00:07]} 17. Rhc1 {[%emt 0:04:42]} Kb8 {[%emt 0:36:04]} 18. b4 {[%emt 0:03:39]} Bb6 {[%emt 0:00:21]} 19. Bf4 {[%emt 0:00:59]} Rd7 {[%emt 0:01:07]} 20. a4 {[%emt 0:01:11]} g5 {[%emt 0:09:14]} 21. Bg3 {[%emt 0:09:20]} a5 {[%emt 0:04:35]} 22. bxa5 {[%emt 0:04:45]} Bxa5 {[%emt 0:00:13]} 23. Rc5 {[%emt 0:03:13]} Bb6 {[%emt 0:09:19]} 24. Rb5 {[%emt 0:05:50]} Bd4 {[%emt 0:10:06]} 25. a5 {[%emt 0:06:42]} Rc8 {[%emt 0:01:06]} 26. Rcb1 {[%emt 0:00:53]} Ka8 {[%emt 0:05:34]} 27. Rxb7 {[%emt 0:01:12]} Ba7 {[%emt 0:00:24]} 28. h3 {[%emt 0:03:01]} Rb8 {[%emt 0:00:30]} 29. Rxb8+ {[%emt 0:02:06]} Bxb8 {[%emt 0:00:04]} 30. Rb5 {[%emt 0:00:53]} h6 {[%emt 0:00:51]} 31. f4 {[%emt 0:02:10]} c6 {[%emt 0:00:19]} 32. Rf5 {[%emt 0:07:05]} Kb7 {[%emt 0:02:09]} 33. Rf6 {[%emt 0:01:58]} h5 {[%emt 0:00:20]} 34. Rf5 {[%emt 0:01:46]} gxf4 {[%emt 0:00:41]} 35. Bxf4 {[%emt 0:00:11]} Bxf4 {[%emt 0:00:10]} 36. Rxf4 {[%emt 0:00:06]} Ka6 {[%emt 0:00:17]} 37. Rf5 {[%emt 0:00:51]} h4 {[%emt 0:00:21]} 38. Ke3 {[%emt 0:01:31]} Rc7 {[%emt 0:00:19]} 39. Kd4 {[%emt 0:00:46]} Re7 {[%emt 0:00:56]} 40. Rc5 {[%emt 0:05:03]} Re6 {[%emt 0:00:33]} 41. Ke3 {[%emt 0:01:32]} Rg6 {[%emt 0:00:23]} 42. Kf3 {[%emt 0:00:56]} Rg3+ {[%emt 0:00:31]} 43. Kf2 {[%emt 0:00:21]} Rg6 {[%emt 0:00:04]} 44. Rf5 {[%emt 0:01:20]} Rg7 {[%emt 0:00:44]} 45. Rf6 {[%emt 0:01:39]} Kxa5 {[%emt 0:00:11]} 46. Rxc6 {[%emt 0:00:05]} Rh7 {[%emt 0:00:13]} 47. Rf6 {[%emt 0:01:15]} Kb5 {[%emt 0:00:07]} 48. Kf3 {[%emt 0:00:29]} Kc5 {[%emt 0:00:30]} 49. g4 {[%emt 0:01:03]} hxg3 {[%emt 0:00:20]} 50. Kxg3 {[%emt 0:00:04]} Kd4 {[%emt 0:00:11]} 51. Rf4 {[%emt 0:00:21]} Ke5 {[%emt 0:00:10]} 52. h4 {[%emt 0:00:12]} Rg7+ {[%emt 0:00:28]} 53. Kf3 {[%emt 0:01:23]} f6 {[%emt 0:00:23]} 54. Rf5+ {[%emt 0:00:39]} Ke6 {[%emt 0:00:21]} 55. Ra5 {[%emt 0:00:35]} Rh7 {[%emt 0:01:29]} 56. h5 {[%emt 0:00:29]} Rh8 {[%emt 0:00:28]} 57. Kf4 {[%emt 0:00:28]} Rh6 {[%emt 0:00:21]} 58. Ra6+ {[%emt 0:01:10]} Kf7 {[%emt 0:00:15]} 59. Kg4 {[%emt 0:00:46]} f5+ {[%emt 0:00:26]} 60. exf5 {[%emt 0:00:30]} Rxa6 {[%emt 0:00:11]} 61. Kg5 {[%emt 0:00:26]} Kg7 {[%emt 0:00:41]} 62. Kf4 {[%emt 0:00:40]} Kh6 {[%emt 0:00:18]} 0-1

[Event "Hungarian Youth-ch II 2024"]
[Site "Szolnok"]
[Date "2024.04.02"]
[Round "3.6"]
[White "Medvegy, Maria"]
[Black "Horvath, Adel"]
[Result "0-1"]
[ECO "B51"]
[WhiteElo "1474"]
[BlackElo "1681"]
[Annotator "NA RC"]
[PlyCount "70"]
[EventDate "2024.03.31"]
[EventType "swiss"]
[EventCountry "HUN"]
[SourceTitle "playchess.com"]
[Source "ChessBase"]
[SourceQuality "1"]
[TimeControl "5400+30"]

1. e4 {[%emt 0:00:03]} c5 {[%emt 0:00:06]} 2. Nf3 {[%emt 0:00:09]} d6 {[%emt 0:00:15]} 3. Bb5+ {[%emt 0:00:35]} Nd7 {[%emt 0:00:23]} 4. O-O {[%emt 0:00:37]} a6 {[%emt 0:00:05]} 5. Bxd7+ {[%emt 0:01:01]} Bxd7 {[%emt 0:00:24]} 6. c3 {[%emt 0:00:27]} Nf6 {[%emt 0:00:44]} 7. Re1 {[%emt 0:00:37]} e6 {[%emt 0:00:24]} 8. d4 {[%emt 0:00:37]} cxd4 {[%emt 0:00:07]} 9. cxd4 {[%emt 0:00:23]} Be7 {[%emt 0:00:13]} 10. Nc3 {[%emt 0:00:55]} O-O {[%emt 0:00:25]} 11. Bg5 {[%emt 0:02:09]} Rc8 {[%emt 0:01:35]} 12. Rc1 {[%emt 0:01:11]} h6 {[%emt 0:05:05]} 13. Bh4 {[%emt 0:01:42]} b5 {[%emt 0:05:16]} 14. e5 {[%emt 0:04:07]} Ne8 {[%emt 0:01:40]} 15. Bxe7 {[%emt 0:01:22]} Qxe7 {[%emt 0:00:12]} 16. exd6 {[%emt 0:02:13]} Nxd6 {[%emt 0:00:37]} 17. Nd5 {[%emt 0:02:32]} Qd8 {[%emt 0:01:44]} 18. Rxc8 {[%emt 0:01:07]} Nxc8 {[%emt 0:00:14]} 19. Nf4 {[%emt 0:02:41]} Ne7 {[%emt 0:01:57]} 20. Ne5 {[%emt 0:03:39]} Nc6 {[%emt 0:01:05]} 21. Nf3 {[%emt 0:05:52]} Qc7 {[%emt 0:05:26]} 22. Nd3 {[%emt 0:00:53]} Rc8 {[%emt 0:04:18]} 23. Nc5 {[%emt 0:06:13]} a5 {[%emt 0:00:52]} 24. d5 {[%emt 0:03:37]} exd5 {[%emt 0:00:30]} 25. Qxd5 {[%emt 0:03:02]} Bg4 {[%emt 0:05:10]} 26. Nd3 {[%emt 0:06:38]} Bxf3 {[%emt 0:01:01]} 27. Qxf3 {[%emt 0:00:49]} Qd7 {[%emt 0:04:34]} 28. g3 {[%emt 0:02:47]} Nd4 {[%emt 0:01:23]} 29. Qe4 {[%emt 0:03:07]} f5 {[%emt 0:07:20]} 30. Qf4 {[%emt 0:04:37]} Rc2 {[%emt 0:05:23]} 31. Kg2 {[%emt 0:02:23]} Qd5+ {[%emt 0:01:41]} 32. Kh3 {[%emt 0:01:03]} Ne6 {[%emt 0:04:35]} 33. Qb8+ {[%emt 0:08:14]} Kh7 {[%emt 0:00:24]} 34. f4 {[%emt 0:01:33]} Qg2+ {[%emt 0:00:37]} 35. Kh4 {[%emt 0:00:38]} Qxh2# {[%emt 0:00:18]} 0-1

[Event "Hungarian Youth-ch II 2024"]
[Site "Szolnok"]
[Date "2024.04.02"]
[Round "3.7"]
[White "Janosi, Boglarka"]
[Black "Vadkerti, Anna"]
[Result "0-1"]
[ECO "B35"]
[WhiteElo "1466"]
[BlackElo "1502"]
[Annotator "NA RC"]
[PlyCount "116"]
[EventDate "2024.03.31"]
[EventType "swiss"]
[EventCountry "HUN"]
[SourceTitle "playchess.com"]
[Source "ChessBase"]
[SourceQuality "1"]
[TimeControl "5400+30"]

1. e4 {[%emt 0:00:02]} c5 {[%emt 0:00:05]} 2. Nf3 {[%emt 0:00:12]} Nc6 {[%emt 0:00:07]} 3. d4 {[%emt 0:00:08]} cxd4 {[%emt 0:00:07]} 4. Nxd4 {[%emt 0:00:09]} g6 {[%emt 0:00:13]} 5. Nc3 {[%emt 0:00:09]} Bg7 {[%emt 0:00:15]} 6. Be3 {[%emt 0:00:18]} Nf6 {[%emt 0:00:09]} 7. Bc4 {[%emt 0:00:44]} d6 {[%emt 0:00:09]} 8. Bb3 {[%emt 0:00:23]} Ng4 {[%emt 0:00:33]} 9. Nxc6 {[%emt 0:02:04]} bxc6 {[%emt 0:00:18]} 10. Qd2 {[%emt 0:00:31]} Nxe3 {[%emt 0:00:23]} 11. Qxe3 {[%emt 0:00:25]} O-O {[%emt 0:00:43]} 12. O-O {[%emt 0:00:21]} Bb7 {[%emt 0:01:17]} 13. Rad1 {[%emt 0:02:32]} Qa5 {[%emt 0:02:11]} 14. Rfe1 {[%emt 0:05:53]} Qh5 {[%emt 0:02:59]} 15. Qe2 {[%emt 0:03:34]} Qxe2 {[%emt 0:00:57]} 16. Rxe2 {[%emt 0:00:17]} Rfd8 {[%emt 0:03:33]} 17. Re3 {[%emt 0:03:59]} Rac8 {[%emt 0:04:25]} 18. Rf3 {[%emt 0:03:29]} e6 {[%emt 0:01:47]} 19. Rfd3 {[%emt 0:00:39]} d5 {[%emt 0:00:45]} 20. exd5 {[%emt 0:00:40]} exd5 {[%emt 0:00:55]} 21. h3 {[%emt 0:01:14]} Ba6 {[%emt 0:01:47]} 22. R3d2 {[%emt 0:02:22]} Re8 {[%emt 0:03:47]} 23. Rb1 {[%emt 0:01:16]} Rc7 {[%emt 0:01:57]} 24. Ba4 {[%emt 0:04:55]} d4 {[%emt 0:02:03]} 25. Nd5 {[%emt 0:00:59]} Rcc8 {[%emt 0:00:53]} 26. Nb4 {[%emt 0:02:13]} Bb7 {[%emt 0:01:36]} 27. a3 {[%emt 0:05:26]} Re7 {[%emt 0:01:11]} 28. Kh1 {[%emt 0:04:25]} c5 {[%emt 0:02:43]} 29. Nd3 {[%emt 0:04:45]} Bc6 {[%emt 0:05:00]} 30. Bxc6 {[%emt 0:01:09]} Rxc6 {[%emt 0:00:15]} 31. Nf4 {[%emt 0:00:43]} Bh6 {[%emt 0:01:15]} 32. g3 {[%emt 0:00:53]} Bxf4 {[%emt 0:01:03]} 33. gxf4 {[%emt 0:00:21]} Rf6 {[%emt 0:00:34]} 34. b4 {[%emt 0:08:22]} cxb4 {[%emt 0:03:19]} 35. Rxd4 {[%emt 0:00:36]} bxa3 {[%emt 0:00:45]} 36. Ra1 {[%emt 0:01:57]} Ra6 {[%emt 0:01:11]} 37. Rd2 {[%emt 0:00:31]} Re4 {[%emt 0:00:36]} 38. f5 {[%emt 0:01:02]} Rea4 {[%emt 0:01:28]} 39. fxg6 {[%emt 0:00:27]} hxg6 {[%emt 0:00:16]} 40. c3 {[%emt 0:01:02]} Rb6 {[%emt 0:01:23]} 41. Rc2 {[%emt 0:00:40]} Rb2 {[%emt 0:01:47]} 42. Rcc1 {[%emt 0:00:21]} Rxf2 {[%emt 0:01:58]} 43. c4 {[%emt 0:00:18]} Rf6 {[%emt 0:00:17]} 44. c5 {[%emt 0:00:07]} Rc6 {[%emt 0:00:09]} 45. Kg2 {[%emt 0:00:13]} Kg7 {[%emt 0:00:23]} 46. Kf3 {[%emt 0:00:10]} Kf6 {[%emt 0:00:16]} 47. Ke3 {[%emt 0:00:44]} Ke6 {[%emt 0:00:14]} 48. Kd3 {[%emt 0:00:18]} Kd5 {[%emt 0:00:07]} 49. Rc2 {[%emt 0:01:15]} Rxc5 {[%emt 0:00:19]} 50. Rxc5+ {[%emt 0:00:09]} Kxc5 {[%emt 0:00:07]} 51. Kc3 {[%emt 0:00:05]} a2 {[%emt 0:00:37]} 52. Kb3 {[%emt 0:00:18]} Ra6 {[%emt 0:00:11]} 53. Rxa2 {[%emt 0:00:20]} Rxa2 {[%emt 0:00:06]} 54. Kxa2 {[%emt 0:00:11]} Kd4 {[%emt 0:00:08]} 55. Kb3 {[%emt 0:00:07]} Ke3 {[%emt 0:00:11]} 56. Kb4 {[%emt 0:00:14]} Kf3 {[%emt 0:00:09]} 57. h4 {[%emt 0:00:11]} Kg4 {[%emt 0:00:17]} 58. h5 {[%emt 0:00:04]} gxh5 {[%emt 0:00:10]} 0-1